{"text_format":"1","workbook":"xlsx","n_sheets":1,"sheets":["Saídas Itens Novos TEC"],"not_rendered":{"charts":0,"images":0,"macros":1,"external_links":2,"defined_names":3,"comments":0,"pivot_tables":0},"unopened":[],"bounds":{"document_bytes":16777216,"sheet_cells":100000,"rows_first":2000,"rows_last":500,"rows_between":2000,"halvings":0,"cell_chars":16384,"cell_head_chars":4096},"cells_cut":0,"cells_raw":0,"read":"whole","date_system":"1900"}

{"sheet":"Saídas Itens Novos TEC","index":0,"n_rows":64,"n_cols":19,"rows_kept":64,"cut":false,"hidden":false,"merged":[[0,0,0,14],[5,2,5,16]]}
["                                      EMISSÃO DE ETIQUETAS - Saídas Itens novos"]
[]
["Data","Número da Nota/Movimento de Saída","Coligada","Local de Retirada","Código RM","Descrição RM","Unidade","Quantidade de Saída","Departamento Solicitante","Centro de Custo","Nome do equipamento/Local","Código RM do Equipamento","Conferente","Recebedor","Status"]
[]
[]
[null,null,"Saídas Itens novos TEC - "]
[]
["Data","Número da Nota/Movimento de Saída","Coligada","Local de Retirada","Código RM","Descrição RM","Unidade","Quantidade de Saída","Departamento Solicitante","Centro de Custo","Nome do equipamento/Local","Código RM do Equipamento","Conferente","Recebedor","Status","Preço Médio Unitário","Preço Total",null,"Saldo em Estoque"]
[null,null,null,null,null,null,null,null,null,null,null,null,null,null,"Ok",{"$f":"SUMIFS('[1]Entradas Itens Novos TEC'!$O$9:$O$1048576,'[1]Entradas Itens Novos TEC'!$A$9:$A$1048576,\"<=42498\",'[1]Entradas Itens Novos TEC'!$G$9:$G$1048576,'Saídas Itens Novos TEC'!E9,'[1]Entradas Itens Novos TEC'!$F$9:$F$1048576,'Saídas Itens Novos TEC'!D9)","v":0},{"$f":"P9*H9","v":0},null,{"$f":"SUMIFS('[1]Porlocal-Itens Novos TEC-Resumo'!$M$3:$M$1048576,'[1]Porlocal-Itens Novos TEC-Resumo'!$B$3:$B$1048576,'Saídas Itens Novos TEC'!E9,'[1]Porlocal-Itens Novos TEC-Resumo'!$A$3:$A$1048576,'Saídas Itens Novos TEC'!D9)","v":0}]
[null,null,null,null,null,null,null,null,null,null,null,null,null,null,null,{"$f":"SUMIFS('[1]Entradas Itens Novos TEC'!$O$9:$O$1048576,'[1]Entradas Itens Novos TEC'!$A$9:$A$1048576,\"<=42498\",'[1]Entradas Itens Novos TEC'!$G$9:$G$1048576,'Saídas Itens Novos TEC'!E10,'[1]Entradas Itens Novos TEC'!$F$9:$F$1048576,'Saídas Itens Novos TEC'!D10)","v":0},{"$f":"P10*H10","v":0},null,{"$f":"SUMIFS('[1]Porlocal-Itens Novos TEC-Resumo'!$M$3:$M$1048576,'[1]Porlocal-Itens Novos TEC-Resumo'!$B$3:$B$1048576,'Saídas Itens Novos TEC'!E10,'[1]Porlocal-Itens Novos TEC-Resumo'!$A$3:$A$1048576,'Saídas Itens Novos TEC'!D10)","v":0}]
[null,null,null,null,null,null,null,null,null,null,null,null,null,null,null,{"$f":"SUMIFS('[1]Entradas Itens Novos TEC'!$O$9:$O$1048576,'[1]Entradas Itens Novos TEC'!$A$9:$A$1048576,\"<=42498\",'[1]Entradas Itens Novos TEC'!$G$9:$G$1048576,'Saídas Itens Novos TEC'!E11,'[1]Entradas Itens Novos TEC'!$F$9:$F$1048576,'Saídas Itens Novos TEC'!D11)","v":0},0,null,{"$f":"SUMIFS('[1]Porlocal-Itens Novos TEC-Resumo'!$M$3:$M$1048576,'[1]Porlocal-Itens Novos TEC-Resumo'!$B$3:$B$1048576,'Saídas Itens Novos TEC'!E11,'[1]Porlocal-Itens Novos TEC-Resumo'!$A$3:$A$1048576,'Saídas Itens Novos TEC'!D11)","v":0}]
[null,null,null,null,null,null,null,null,null,null,null,null,null,null,null,{"$f":"SUMIFS('[1]Entradas Itens Novos TEC'!$O$9:$O$1048576,'[1]Entradas Itens Novos TEC'!$A$9:$A$1048576,\"<=42498\",'[1]Entradas Itens Novos TEC'!$G$9:$G$1048576,'Saídas Itens Novos TEC'!E12,'[1]Entradas Itens Novos TEC'!$F$9:$F$1048576,'Saídas Itens Novos TEC'!D12)","v":0},0,null,{"$f":"SUMIFS('[1]Porlocal-Itens Novos TEC-Resumo'!$M$3:$M$1048576,'[1]Porlocal-Itens Novos TEC-Resumo'!$B$3:$B$1048576,'Saídas Itens Novos TEC'!E12,'[1]Porlocal-Itens Novos TEC-Resumo'!$A$3:$A$1048576,'Saídas Itens Novos TEC'!D12)","v":0}]
[null,null,null,null,null,null,null,null,null,null,null,null,null,null,null,{"$f":"SUMIFS('[1]Entradas Itens Novos TEC'!$O$9:$O$1048576,'[1]Entradas Itens Novos TEC'!$A$9:$A$1048576,\"<=42498\",'[1]Entradas Itens Novos TEC'!$G$9:$G$1048576,'Saídas Itens Novos TEC'!E13,'[1]Entradas Itens Novos TEC'!$F$9:$F$1048576,'Saídas Itens Novos TEC'!D13)","v":0},0,null,{"$f":"SUMIFS('[1]Porlocal-Itens Novos TEC-Resumo'!$M$3:$M$1048576,'[1]Porlocal-Itens Novos TEC-Resumo'!$B$3:$B$1048576,'Saídas Itens Novos TEC'!E13,'[1]Porlocal-Itens Novos TEC-Resumo'!$A$3:$A$1048576,'Saídas Itens Novos TEC'!D13)","v":0}]
[null,null,null,null,null,null,null,null,null,null,null,null,null,null,null,{"$f":"SUMIFS('[1]Entradas Itens Novos TEC'!$O$9:$O$1048576,'[1]Entradas Itens Novos TEC'!$A$9:$A$1048576,\"<=42498\",'[1]Entradas Itens Novos TEC'!$G$9:$G$1048576,'Saídas Itens Novos TEC'!E14,'[1]Entradas Itens Novos TEC'!$F$9:$F$1048576,'Saídas Itens Novos TEC'!D14)","v":0},0,null,{"$f":"SUMIFS('[1]Porlocal-Itens Novos TEC-Resumo'!$M$3:$M$1048576,'[1]Porlocal-Itens Novos TEC-Resumo'!$B$3:$B$1048576,'Saídas Itens Novos TEC'!E14,'[1]Porlocal-Itens Novos TEC-Resumo'!$A$3:$A$1048576,'Saídas Itens Novos TEC'!D14)","v":0}]
[null,null,null,null,null,null,null,null,null,null,null,null,null,null,null,{"$f":"SUMIFS('[1]Entradas Itens Novos TEC'!$O$9:$O$1048576,'[1]Entradas Itens Novos TEC'!$A$9:$A$1048576,\"<=42498\",'[1]Entradas Itens Novos TEC'!$G$9:$G$1048576,'Saídas Itens Novos TEC'!E15,'[1]Entradas Itens Novos TEC'!$F$9:$F$1048576,'Saídas Itens Novos TEC'!D15)","v":0},0,null,{"$f":"SUMIFS('[1]Porlocal-Itens Novos TEC-Resumo'!$M$3:$M$1048576,'[1]Porlocal-Itens Novos TEC-Resumo'!$B$3:$B$1048576,'Saídas Itens Novos TEC'!E15,'[1]Porlocal-Itens Novos TEC-Resumo'!$A$3:$A$1048576,'Saídas Itens Novos TEC'!D15)","v":0}]
[null,null,null,null,null,null,null,null,null,null,null,null,null,null,null,{"$f":"SUMIFS('[1]Entradas Itens Novos TEC'!$O$9:$O$1048576,'[1]Entradas Itens Novos TEC'!$A$9:$A$1048576,\"<=42498\",'[1]Entradas Itens Novos TEC'!$G$9:$G$1048576,'Saídas Itens Novos TEC'!E16,'[1]Entradas Itens Novos TEC'!$F$9:$F$1048576,'Saídas Itens Novos TEC'!D16)","v":0},0,null,{"$f":"SUMIFS('[1]Porlocal-Itens Novos TEC-Resumo'!$M$3:$M$1048576,'[1]Porlocal-Itens Novos TEC-Resumo'!$B$3:$B$1048576,'Saídas Itens Novos TEC'!E16,'[1]Porlocal-Itens Novos TEC-Resumo'!$A$3:$A$1048576,'Saídas Itens Novos TEC'!D16)","v":0}]
[null,null,null,null,null,null,null,null,null,null,null,null,null,null,null,{"$f":"SUMIFS('[1]Entradas Itens Novos TEC'!$O$9:$O$1048576,'[1]Entradas Itens Novos TEC'!$A$9:$A$1048576,\"<=42498\",'[1]Entradas Itens Novos TEC'!$G$9:$G$1048576,'Saídas Itens Novos TEC'!E17,'[1]Entradas Itens Novos TEC'!$F$9:$F$1048576,'Saídas Itens Novos TEC'!D17)","v":0},0,null,{"$f":"SUMIFS('[1]Porlocal-Itens Novos TEC-Resumo'!$M$3:$M$1048576,'[1]Porlocal-Itens Novos TEC-Resumo'!$B$3:$B$1048576,'Saídas Itens Novos TEC'!E17,'[1]Porlocal-Itens Novos TEC-Resumo'!$A$3:$A$1048576,'Saídas Itens Novos TEC'!D17)","v":0}]
[null,null,null,null,null,null,null,null,null,null,null,null,null,null,null,{"$f":"SUMIFS('[1]Entradas Itens Novos TEC'!$O$9:$O$1048576,'[1]Entradas Itens Novos TEC'!$A$9:$A$1048576,\"<=42498\",'[1]Entradas Itens Novos TEC'!$G$9:$G$1048576,'Saídas Itens Novos TEC'!E18,'[1]Entradas Itens Novos TEC'!$F$9:$F$1048576,'Saídas Itens Novos TEC'!D18)","v":0},0,null,{"$f":"SUMIFS('[1]Porlocal-Itens Novos TEC-Resumo'!$M$3:$M$1048576,'[1]Porlocal-Itens Novos TEC-Resumo'!$B$3:$B$1048576,'Saídas Itens Novos TEC'!E18,'[1]Porlocal-Itens Novos TEC-Resumo'!$A$3:$A$1048576,'Saídas Itens Novos TEC'!D18)","v":0}]
[null,null,null,null,null,null,null,null,null,null,null,null,null,null,null,{"$f":"SUMIFS('[1]Entradas Itens Novos TEC'!$O$9:$O$1048576,'[1]Entradas Itens Novos TEC'!$A$9:$A$1048576,\"<=42498\",'[1]Entradas Itens Novos TEC'!$G$9:$G$1048576,'Saídas Itens Novos TEC'!E19,'[1]Entradas Itens Novos TEC'!$F$9:$F$1048576,'Saídas Itens Novos TEC'!D19)","v":0},0,null,{"$f":"SUMIFS('[1]Porlocal-Itens Novos TEC-Resumo'!$M$3:$M$1048576,'[1]Porlocal-Itens Novos TEC-Resumo'!$B$3:$B$1048576,'Saídas Itens Novos TEC'!E19,'[1]Porlocal-Itens Novos TEC-Resumo'!$A$3:$A$1048576,'Saídas Itens Novos TEC'!D19)","v":0}]
[null,null,null,null,null,null,null,null,null,null,null,null,null,null,null,{"$f":"SUMIFS('[1]Entradas Itens Novos TEC'!$O$9:$O$1048576,'[1]Entradas Itens Novos TEC'!$A$9:$A$1048576,\"<=42498\",'[1]Entradas Itens Novos TEC'!$G$9:$G$1048576,'Saídas Itens Novos TEC'!E20,'[1]Entradas Itens Novos TEC'!$F$9:$F$1048576,'Saídas Itens Novos TEC'!D20)","v":0},0,null,{"$f":"SUMIFS('[1]Porlocal-Itens Novos TEC-Resumo'!$M$3:$M$1048576,'[1]Porlocal-Itens Novos TEC-Resumo'!$B$3:$B$1048576,'Saídas Itens Novos TEC'!E20,'[1]Porlocal-Itens Novos TEC-Resumo'!$A$3:$A$1048576,'Saídas Itens Novos TEC'!D20)","v":0}]
[null,null,null,null,null,null,null,null,null,null,null,null,null,null,null,{"$f":"SUMIFS('[1]Entradas Itens Novos TEC'!$O$9:$O$1048576,'[1]Entradas Itens Novos TEC'!$A$9:$A$1048576,\"<=42498\",'[1]Entradas Itens Novos TEC'!$G$9:$G$1048576,'Saídas Itens Novos TEC'!E21,'[1]Entradas Itens Novos TEC'!$F$9:$F$1048576,'Saídas Itens Novos TEC'!D21)","v":0},0,null,{"$f":"SUMIFS('[1]Porlocal-Itens Novos TEC-Resumo'!$M$3:$M$1048576,'[1]Porlocal-Itens Novos TEC-Resumo'!$B$3:$B$1048576,'Saídas Itens Novos TEC'!E21,'[1]Porlocal-Itens Novos TEC-Resumo'!$A$3:$A$1048576,'Saídas Itens Novos TEC'!D21)","v":0}]
[null,null,null,null,null,null,null,null,null,null,null,null,null,null,null,{"$f":"SUMIFS('[1]Entradas Itens Novos TEC'!$O$9:$O$1048576,'[1]Entradas Itens Novos TEC'!$A$9:$A$1048576,\"<=42498\",'[1]Entradas Itens Novos TEC'!$G$9:$G$1048576,'Saídas Itens Novos TEC'!E22,'[1]Entradas Itens Novos TEC'!$F$9:$F$1048576,'Saídas Itens Novos TEC'!D22)","v":0},0,null,{"$f":"SUMIFS('[1]Porlocal-Itens Novos TEC-Resumo'!$M$3:$M$1048576,'[1]Porlocal-Itens Novos TEC-Resumo'!$B$3:$B$1048576,'Saídas Itens Novos TEC'!E22,'[1]Porlocal-Itens Novos TEC-Resumo'!$A$3:$A$1048576,'Saídas Itens Novos TEC'!D22)","v":0}]
[null,null,null,null,null,null,null,null,null,null,null,null,null,null,null,{"$f":"SUMIFS('[1]Entradas Itens Novos TEC'!$O$9:$O$1048576,'[1]Entradas Itens Novos TEC'!$A$9:$A$1048576,\"<=42498\",'[1]Entradas Itens Novos TEC'!$G$9:$G$1048576,'Saídas Itens Novos TEC'!E23,'[1]Entradas Itens Novos TEC'!$F$9:$F$1048576,'Saídas Itens Novos TEC'!D23)","v":0},0,null,{"$f":"SUMIFS('[1]Porlocal-Itens Novos TEC-Resumo'!$M$3:$M$1048576,'[1]Porlocal-Itens Novos TEC-Resumo'!$B$3:$B$1048576,'Saídas Itens Novos TEC'!E23,'[1]Porlocal-Itens Novos TEC-Resumo'!$A$3:$A$1048576,'Saídas Itens Novos TEC'!D23)","v":0}]
[null,null,null,null,null,null,null,null,null,null,null,null,null,null,null,{"$f":"SUMIFS('[1]Entradas Itens Novos TEC'!$O$9:$O$1048576,'[1]Entradas Itens Novos TEC'!$A$9:$A$1048576,\"<=42498\",'[1]Entradas Itens Novos TEC'!$G$9:$G$1048576,'Saídas Itens Novos TEC'!E24,'[1]Entradas Itens Novos TEC'!$F$9:$F$1048576,'Saídas Itens Novos TEC'!D24)","v":0},0,null,{"$f":"SUMIFS('[1]Porlocal-Itens Novos TEC-Resumo'!$M$3:$M$1048576,'[1]Porlocal-Itens Novos TEC-Resumo'!$B$3:$B$1048576,'Saídas Itens Novos TEC'!E24,'[1]Porlocal-Itens Novos TEC-Resumo'!$A$3:$A$1048576,'Saídas Itens Novos TEC'!D24)","v":0}]
[null,null,null,null,null,null,null,null,null,null,null,null,null,null,null,{"$f":"SUMIFS('[1]Entradas Itens Novos TEC'!$O$9:$O$1048576,'[1]Entradas Itens Novos TEC'!$A$9:$A$1048576,\"<=42498\",'[1]Entradas Itens Novos TEC'!$G$9:$G$1048576,'Saídas Itens Novos TEC'!E25,'[1]Entradas Itens Novos TEC'!$F$9:$F$1048576,'Saídas Itens Novos TEC'!D25)","v":0},0,null,{"$f":"SUMIFS('[1]Porlocal-Itens Novos TEC-Resumo'!$M$3:$M$1048576,'[1]Porlocal-Itens Novos TEC-Resumo'!$B$3:$B$1048576,'Saídas Itens Novos TEC'!E25,'[1]Porlocal-Itens Novos TEC-Resumo'!$A$3:$A$1048576,'Saídas Itens Novos TEC'!D25)","v":0}]
[null,null,null,null,null,null,null,null,null,null,null,null,null,null,null,{"$f":"SUMIFS('[1]Entradas Itens Novos TEC'!$O$9:$O$1048576,'[1]Entradas Itens Novos TEC'!$A$9:$A$1048576,\"<=42498\",'[1]Entradas Itens Novos TEC'!$G$9:$G$1048576,'Saídas Itens Novos TEC'!E26,'[1]Entradas Itens Novos TEC'!$F$9:$F$1048576,'Saídas Itens Novos TEC'!D26)","v":0},0,null,{"$f":"SUMIFS('[1]Porlocal-Itens Novos TEC-Resumo'!$M$3:$M$1048576,'[1]Porlocal-Itens Novos TEC-Resumo'!$B$3:$B$1048576,'Saídas Itens Novos TEC'!E26,'[1]Porlocal-Itens Novos TEC-Resumo'!$A$3:$A$1048576,'Saídas Itens Novos TEC'!D26)","v":0}]
[null,null,null,null,null,null,null,null,null,null,null,null,null,null,null,{"$f":"SUMIFS('[1]Entradas Itens Novos TEC'!$O$9:$O$1048576,'[1]Entradas Itens Novos TEC'!$A$9:$A$1048576,\"<=42498\",'[1]Entradas Itens Novos TEC'!$G$9:$G$1048576,'Saídas Itens Novos TEC'!E27,'[1]Entradas Itens Novos TEC'!$F$9:$F$1048576,'Saídas Itens Novos TEC'!D27)","v":0},0,null,{"$f":"SUMIFS('[1]Porlocal-Itens Novos TEC-Resumo'!$M$3:$M$1048576,'[1]Porlocal-Itens Novos TEC-Resumo'!$B$3:$B$1048576,'Saídas Itens Novos TEC'!E27,'[1]Porlocal-Itens Novos TEC-Resumo'!$A$3:$A$1048576,'Saídas Itens Novos TEC'!D27)","v":0}]
[null,null,null,null,null,null,null,null,null,null,null,null,null,null,null,{"$f":"SUMIFS('[1]Entradas Itens Novos TEC'!$O$9:$O$1048576,'[1]Entradas Itens Novos TEC'!$A$9:$A$1048576,\"<=42498\",'[1]Entradas Itens Novos TEC'!$G$9:$G$1048576,'Saídas Itens Novos TEC'!E28,'[1]Entradas Itens Novos TEC'!$F$9:$F$1048576,'Saídas Itens Novos TEC'!D28)","v":0},0,null,{"$f":"SUMIFS('[1]Porlocal-Itens Novos TEC-Resumo'!$M$3:$M$1048576,'[1]Porlocal-Itens Novos TEC-Resumo'!$B$3:$B$1048576,'Saídas Itens Novos TEC'!E28,'[1]Porlocal-Itens Novos TEC-Resumo'!$A$3:$A$1048576,'Saídas Itens Novos TEC'!D28)","v":0}]
[null,null,null,null,null,null,null,null,null,null,null,null,null,null,null,{"$f":"SUMIFS('[1]Entradas Itens Novos TEC'!$O$9:$O$1048576,'[1]Entradas Itens Novos TEC'!$A$9:$A$1048576,\"<=42498\",'[1]Entradas Itens Novos TEC'!$G$9:$G$1048576,'Saídas Itens Novos TEC'!E29,'[1]Entradas Itens Novos TEC'!$F$9:$F$1048576,'Saídas Itens Novos TEC'!D29)","v":0},0,null,{"$f":"SUMIFS('[1]Porlocal-Itens Novos TEC-Resumo'!$M$3:$M$1048576,'[1]Porlocal-Itens Novos TEC-Resumo'!$B$3:$B$1048576,'Saídas Itens Novos TEC'!E29,'[1]Porlocal-Itens Novos TEC-Resumo'!$A$3:$A$1048576,'Saídas Itens Novos TEC'!D29)","v":0}]
[null,null,null,null,null,null,null,null,null,null,null,null,null,null,null,{"$f":"SUMIFS('[1]Entradas Itens Novos TEC'!$O$9:$O$1048576,'[1]Entradas Itens Novos TEC'!$A$9:$A$1048576,\"<=42498\",'[1]Entradas Itens Novos TEC'!$G$9:$G$1048576,'Saídas Itens Novos TEC'!E30,'[1]Entradas Itens Novos TEC'!$F$9:$F$1048576,'Saídas Itens Novos TEC'!D30)","v":0},0,null,{"$f":"SUMIFS('[1]Porlocal-Itens Novos TEC-Resumo'!$M$3:$M$1048576,'[1]Porlocal-Itens Novos TEC-Resumo'!$B$3:$B$1048576,'Saídas Itens Novos TEC'!E30,'[1]Porlocal-Itens Novos TEC-Resumo'!$A$3:$A$1048576,'Saídas Itens Novos TEC'!D30)","v":0}]
[null,null,null,null,null,null,null,null,null,null,null,null,null,null,null,{"$f":"SUMIFS('[1]Entradas Itens Novos TEC'!$O$9:$O$1048576,'[1]Entradas Itens Novos TEC'!$A$9:$A$1048576,\"<=42498\",'[1]Entradas Itens Novos TEC'!$G$9:$G$1048576,'Saídas Itens Novos TEC'!E31,'[1]Entradas Itens Novos TEC'!$F$9:$F$1048576,'Saídas Itens Novos TEC'!D31)","v":0},0,null,{"$f":"SUMIFS('[1]Porlocal-Itens Novos TEC-Resumo'!$M$3:$M$1048576,'[1]Porlocal-Itens Novos TEC-Resumo'!$B$3:$B$1048576,'Saídas Itens Novos TEC'!E31,'[1]Porlocal-Itens Novos TEC-Resumo'!$A$3:$A$1048576,'Saídas Itens Novos TEC'!D31)","v":0}]
[null,null,null,null,null,null,null,null,null,null,null,null,null,null,null,{"$f":"SUMIFS('[1]Entradas Itens Novos TEC'!$O$9:$O$1048576,'[1]Entradas Itens Novos TEC'!$A$9:$A$1048576,\"<=42498\",'[1]Entradas Itens Novos TEC'!$G$9:$G$1048576,'Saídas Itens Novos TEC'!E32,'[1]Entradas Itens Novos TEC'!$F$9:$F$1048576,'Saídas Itens Novos TEC'!D32)","v":0},0,null,{"$f":"SUMIFS('[1]Porlocal-Itens Novos TEC-Resumo'!$M$3:$M$1048576,'[1]Porlocal-Itens Novos TEC-Resumo'!$B$3:$B$1048576,'Saídas Itens Novos TEC'!E32,'[1]Porlocal-Itens Novos TEC-Resumo'!$A$3:$A$1048576,'Saídas Itens Novos TEC'!D32)","v":0}]
[null,null,null,null,null,null,null,null,null,null,null,null,null,null,null,{"$f":"SUMIFS('[1]Entradas Itens Novos TEC'!$O$9:$O$1048576,'[1]Entradas Itens Novos TEC'!$A$9:$A$1048576,\"<=42498\",'[1]Entradas Itens Novos TEC'!$G$9:$G$1048576,'Saídas Itens Novos TEC'!E33,'[1]Entradas Itens Novos TEC'!$F$9:$F$1048576,'Saídas Itens Novos TEC'!D33)","v":0},0,null,{"$f":"SUMIFS('[1]Porlocal-Itens Novos TEC-Resumo'!$M$3:$M$1048576,'[1]Porlocal-Itens Novos TEC-Resumo'!$B$3:$B$1048576,'Saídas Itens Novos TEC'!E33,'[1]Porlocal-Itens Novos TEC-Resumo'!$A$3:$A$1048576,'Saídas Itens Novos TEC'!D33)","v":0}]
[null,null,null,null,null,null,null,null,null,null,null,null,null,null,null,{"$f":"SUMIFS('[1]Entradas Itens Novos TEC'!$O$9:$O$1048576,'[1]Entradas Itens Novos TEC'!$A$9:$A$1048576,\"<=42498\",'[1]Entradas Itens Novos TEC'!$G$9:$G$1048576,'Saídas Itens Novos TEC'!E34,'[1]Entradas Itens Novos TEC'!$F$9:$F$1048576,'Saídas Itens Novos TEC'!D34)","v":0},0,null,{"$f":"SUMIFS('[1]Porlocal-Itens Novos TEC-Resumo'!$M$3:$M$1048576,'[1]Porlocal-Itens Novos TEC-Resumo'!$B$3:$B$1048576,'Saídas Itens Novos TEC'!E34,'[1]Porlocal-Itens Novos TEC-Resumo'!$A$3:$A$1048576,'Saídas Itens Novos TEC'!D34)","v":0}]
[null,null,null,null,null,null,null,null,null,null,null,null,null,null,null,{"$f":"SUMIFS('[1]Entradas Itens Novos TEC'!$O$9:$O$1048576,'[1]Entradas Itens Novos TEC'!$A$9:$A$1048576,\"<=42498\",'[1]Entradas Itens Novos TEC'!$G$9:$G$1048576,'Saídas Itens Novos TEC'!E35,'[1]Entradas Itens Novos TEC'!$F$9:$F$1048576,'Saídas Itens Novos TEC'!D35)","v":0},0,null,{"$f":"SUMIFS('[1]Porlocal-Itens Novos TEC-Resumo'!$M$3:$M$1048576,'[1]Porlocal-Itens Novos TEC-Resumo'!$B$3:$B$1048576,'Saídas Itens Novos TEC'!E35,'[1]Porlocal-Itens Novos TEC-Resumo'!$A$3:$A$1048576,'Saídas Itens Novos TEC'!D35)","v":0}]
[null,null,null,null,null,null,null,null,null,null,null,null,null,null,null,{"$f":"SUMIFS('[1]Entradas Itens Novos TEC'!$O$9:$O$1048576,'[1]Entradas Itens Novos TEC'!$A$9:$A$1048576,\"<=42498\",'[1]Entradas Itens Novos TEC'!$G$9:$G$1048576,'Saídas Itens Novos TEC'!E36,'[1]Entradas Itens Novos TEC'!$F$9:$F$1048576,'Saídas Itens Novos TEC'!D36)","v":0},0,null,{"$f":"SUMIFS('[1]Porlocal-Itens Novos TEC-Resumo'!$M$3:$M$1048576,'[1]Porlocal-Itens Novos TEC-Resumo'!$B$3:$B$1048576,'Saídas Itens Novos TEC'!E36,'[1]Porlocal-Itens Novos TEC-Resumo'!$A$3:$A$1048576,'Saídas Itens Novos TEC'!D36)","v":0}]
[null,null,null,null,null,null,null,null,null,null,null,null,null,null,null,{"$f":"SUMIFS('[1]Entradas Itens Novos TEC'!$O$9:$O$1048576,'[1]Entradas Itens Novos TEC'!$A$9:$A$1048576,\"<=42498\",'[1]Entradas Itens Novos TEC'!$G$9:$G$1048576,'Saídas Itens Novos TEC'!E37,'[1]Entradas Itens Novos TEC'!$F$9:$F$1048576,'Saídas Itens Novos TEC'!D37)","v":0},0,null,{"$f":"SUMIFS('[1]Porlocal-Itens Novos TEC-Resumo'!$M$3:$M$1048576,'[1]Porlocal-Itens Novos TEC-Resumo'!$B$3:$B$1048576,'Saídas Itens Novos TEC'!E37,'[1]Porlocal-Itens Novos TEC-Resumo'!$A$3:$A$1048576,'Saídas Itens Novos TEC'!D37)","v":0}]
[null,null,null,null,null,null,null,null,null,null,null,null,null,null,null,{"$f":"SUMIFS('[1]Entradas Itens Novos TEC'!$O$9:$O$1048576,'[1]Entradas Itens Novos TEC'!$A$9:$A$1048576,\"<=42498\",'[1]Entradas Itens Novos TEC'!$G$9:$G$1048576,'Saídas Itens Novos TEC'!E38,'[1]Entradas Itens Novos TEC'!$F$9:$F$1048576,'Saídas Itens Novos TEC'!D38)","v":0},0,null,{"$f":"SUMIFS('[1]Porlocal-Itens Novos TEC-Resumo'!$M$3:$M$1048576,'[1]Porlocal-Itens Novos TEC-Resumo'!$B$3:$B$1048576,'Saídas Itens Novos TEC'!E38,'[1]Porlocal-Itens Novos TEC-Resumo'!$A$3:$A$1048576,'Saídas Itens Novos TEC'!D38)","v":0}]
[null,null,null,null,null,null,null,null,null,null,null,null,null,null,null,{"$f":"SUMIFS('[1]Entradas Itens Novos TEC'!$O$9:$O$1048576,'[1]Entradas Itens Novos TEC'!$A$9:$A$1048576,\"<=42498\",'[1]Entradas Itens Novos TEC'!$G$9:$G$1048576,'Saídas Itens Novos TEC'!E39,'[1]Entradas Itens Novos TEC'!$F$9:$F$1048576,'Saídas Itens Novos TEC'!D39)","v":0},0,null,{"$f":"SUMIFS('[1]Porlocal-Itens Novos TEC-Resumo'!$M$3:$M$1048576,'[1]Porlocal-Itens Novos TEC-Resumo'!$B$3:$B$1048576,'Saídas Itens Novos TEC'!E39,'[1]Porlocal-Itens Novos TEC-Resumo'!$A$3:$A$1048576,'Saídas Itens Novos TEC'!D39)","v":0}]
[null,null,null,null,null,null,null,null,null,null,null,null,null,null,null,{"$f":"SUMIFS('[1]Entradas Itens Novos TEC'!$O$9:$O$1048576,'[1]Entradas Itens Novos TEC'!$A$9:$A$1048576,\"<=42498\",'[1]Entradas Itens Novos TEC'!$G$9:$G$1048576,'Saídas Itens Novos TEC'!E40,'[1]Entradas Itens Novos TEC'!$F$9:$F$1048576,'Saídas Itens Novos TEC'!D40)","v":0},0,null,{"$f":"SUMIFS('[1]Porlocal-Itens Novos TEC-Resumo'!$M$3:$M$1048576,'[1]Porlocal-Itens Novos TEC-Resumo'!$B$3:$B$1048576,'Saídas Itens Novos TEC'!E40,'[1]Porlocal-Itens Novos TEC-Resumo'!$A$3:$A$1048576,'Saídas Itens Novos TEC'!D40)","v":0}]
[null,null,null,null,null,null,null,null,null,null,null,null,null,null,null,{"$f":"SUMIFS('[1]Entradas Itens Novos TEC'!$O$9:$O$1048576,'[1]Entradas Itens Novos TEC'!$A$9:$A$1048576,\"<=42498\",'[1]Entradas Itens Novos TEC'!$G$9:$G$1048576,'Saídas Itens Novos TEC'!E41,'[1]Entradas Itens Novos TEC'!$F$9:$F$1048576,'Saídas Itens Novos TEC'!D41)","v":0},0,null,{"$f":"SUMIFS('[1]Porlocal-Itens Novos TEC-Resumo'!$M$3:$M$1048576,'[1]Porlocal-Itens Novos TEC-Resumo'!$B$3:$B$1048576,'Saídas Itens Novos TEC'!E41,'[1]Porlocal-Itens Novos TEC-Resumo'!$A$3:$A$1048576,'Saídas Itens Novos TEC'!D41)","v":0}]
[null,null,null,null,null,null,null,null,null,null,null,null,null,null,null,{"$f":"SUMIFS('[1]Entradas Itens Novos TEC'!$O$9:$O$1048576,'[1]Entradas Itens Novos TEC'!$A$9:$A$1048576,\"<=42498\",'[1]Entradas Itens Novos TEC'!$G$9:$G$1048576,'Saídas Itens Novos TEC'!E42,'[1]Entradas Itens Novos TEC'!$F$9:$F$1048576,'Saídas Itens Novos TEC'!D42)","v":0},0,null,{"$f":"SUMIFS('[1]Porlocal-Itens Novos TEC-Resumo'!$M$3:$M$1048576,'[1]Porlocal-Itens Novos TEC-Resumo'!$B$3:$B$1048576,'Saídas Itens Novos TEC'!E42,'[1]Porlocal-Itens Novos TEC-Resumo'!$A$3:$A$1048576,'Saídas Itens Novos TEC'!D42)","v":0}]
[null,null,null,null,null,null,null,null,null,null,null,null,null,null,null,{"$f":"SUMIFS('[1]Entradas Itens Novos TEC'!$O$9:$O$1048576,'[1]Entradas Itens Novos TEC'!$A$9:$A$1048576,\"<=42498\",'[1]Entradas Itens Novos TEC'!$G$9:$G$1048576,'Saídas Itens Novos TEC'!E43,'[1]Entradas Itens Novos TEC'!$F$9:$F$1048576,'Saídas Itens Novos TEC'!D43)","v":0},0,null,{"$f":"SUMIFS('[1]Porlocal-Itens Novos TEC-Resumo'!$M$3:$M$1048576,'[1]Porlocal-Itens Novos TEC-Resumo'!$B$3:$B$1048576,'Saídas Itens Novos TEC'!E43,'[1]Porlocal-Itens Novos TEC-Resumo'!$A$3:$A$1048576,'Saídas Itens Novos TEC'!D43)","v":0}]
[null,null,null,null,null,null,null,null,null,null,null,null,null,null,null,{"$f":"SUMIFS('[1]Entradas Itens Novos TEC'!$O$9:$O$1048576,'[1]Entradas Itens Novos TEC'!$A$9:$A$1048576,\"<=42498\",'[1]Entradas Itens Novos TEC'!$G$9:$G$1048576,'Saídas Itens Novos TEC'!E44,'[1]Entradas Itens Novos TEC'!$F$9:$F$1048576,'Saídas Itens Novos TEC'!D44)","v":0},0,null,{"$f":"SUMIFS('[1]Porlocal-Itens Novos TEC-Resumo'!$M$3:$M$1048576,'[1]Porlocal-Itens Novos TEC-Resumo'!$B$3:$B$1048576,'Saídas Itens Novos TEC'!E44,'[1]Porlocal-Itens Novos TEC-Resumo'!$A$3:$A$1048576,'Saídas Itens Novos TEC'!D44)","v":0}]
[null,null,null,null,null,null,null,null,null,null,null,null,null,null,null,{"$f":"SUMIFS('[1]Entradas Itens Novos TEC'!$O$9:$O$1048576,'[1]Entradas Itens Novos TEC'!$A$9:$A$1048576,\"<=42498\",'[1]Entradas Itens Novos TEC'!$G$9:$G$1048576,'Saídas Itens Novos TEC'!E45,'[1]Entradas Itens Novos TEC'!$F$9:$F$1048576,'Saídas Itens Novos TEC'!D45)","v":0},0,null,{"$f":"SUMIFS('[1]Porlocal-Itens Novos TEC-Resumo'!$M$3:$M$1048576,'[1]Porlocal-Itens Novos TEC-Resumo'!$B$3:$B$1048576,'Saídas Itens Novos TEC'!E45,'[1]Porlocal-Itens Novos TEC-Resumo'!$A$3:$A$1048576,'Saídas Itens Novos TEC'!D45)","v":0}]
[null,null,null,null,null,null,null,null,null,null,null,null,null,null,null,{"$f":"SUMIFS('[1]Entradas Itens Novos TEC'!$O$9:$O$1048576,'[1]Entradas Itens Novos TEC'!$A$9:$A$1048576,\"<=42498\",'[1]Entradas Itens Novos TEC'!$G$9:$G$1048576,'Saídas Itens Novos TEC'!E46,'[1]Entradas Itens Novos TEC'!$F$9:$F$1048576,'Saídas Itens Novos TEC'!D46)","v":0},0,null,{"$f":"SUMIFS('[1]Porlocal-Itens Novos TEC-Resumo'!$M$3:$M$1048576,'[1]Porlocal-Itens Novos TEC-Resumo'!$B$3:$B$1048576,'Saídas Itens Novos TEC'!E46,'[1]Porlocal-Itens Novos TEC-Resumo'!$A$3:$A$1048576,'Saídas Itens Novos TEC'!D46)","v":0}]
[null,null,null,null,null,null,null,null,null,null,null,null,null,null,null,{"$f":"SUMIFS('[1]Entradas Itens Novos TEC'!$O$9:$O$1048576,'[1]Entradas Itens Novos TEC'!$A$9:$A$1048576,\"<=42498\",'[1]Entradas Itens Novos TEC'!$G$9:$G$1048576,'Saídas Itens Novos TEC'!E47,'[1]Entradas Itens Novos TEC'!$F$9:$F$1048576,'Saídas Itens Novos TEC'!D47)","v":0},0,null,{"$f":"SUMIFS('[1]Porlocal-Itens Novos TEC-Resumo'!$M$3:$M$1048576,'[1]Porlocal-Itens Novos TEC-Resumo'!$B$3:$B$1048576,'Saídas Itens Novos TEC'!E47,'[1]Porlocal-Itens Novos TEC-Resumo'!$A$3:$A$1048576,'Saídas Itens Novos TEC'!D47)","v":0}]
[null,null,null,null,null,null,null,null,null,null,null,null,null,null,null,{"$f":"SUMIFS('[1]Entradas Itens Novos TEC'!$O$9:$O$1048576,'[1]Entradas Itens Novos TEC'!$A$9:$A$1048576,\"<=42498\",'[1]Entradas Itens Novos TEC'!$G$9:$G$1048576,'Saídas Itens Novos TEC'!E48,'[1]Entradas Itens Novos TEC'!$F$9:$F$1048576,'Saídas Itens Novos TEC'!D48)","v":0},0,null,{"$f":"SUMIFS('[1]Porlocal-Itens Novos TEC-Resumo'!$M$3:$M$1048576,'[1]Porlocal-Itens Novos TEC-Resumo'!$B$3:$B$1048576,'Saídas Itens Novos TEC'!E48,'[1]Porlocal-Itens Novos TEC-Resumo'!$A$3:$A$1048576,'Saídas Itens Novos TEC'!D48)","v":0}]
[null,null,null,null,null,null,null,null,null,null,null,null,null,null,null,{"$f":"SUMIFS('[1]Entradas Itens Novos TEC'!$O$9:$O$1048576,'[1]Entradas Itens Novos TEC'!$A$9:$A$1048576,\"<=42498\",'[1]Entradas Itens Novos TEC'!$G$9:$G$1048576,'Saídas Itens Novos TEC'!E49,'[1]Entradas Itens Novos TEC'!$F$9:$F$1048576,'Saídas Itens Novos TEC'!D49)","v":0},0,null,{"$f":"SUMIFS('[1]Porlocal-Itens Novos TEC-Resumo'!$M$3:$M$1048576,'[1]Porlocal-Itens Novos TEC-Resumo'!$B$3:$B$1048576,'Saídas Itens Novos TEC'!E49,'[1]Porlocal-Itens Novos TEC-Resumo'!$A$3:$A$1048576,'Saídas Itens Novos TEC'!D49)","v":0}]
[null,null,null,null,null,null,null,null,null,null,null,null,null,null,null,{"$f":"SUMIFS('[1]Entradas Itens Novos TEC'!$O$9:$O$1048576,'[1]Entradas Itens Novos TEC'!$A$9:$A$1048576,\"<=42498\",'[1]Entradas Itens Novos TEC'!$G$9:$G$1048576,'Saídas Itens Novos TEC'!E50,'[1]Entradas Itens Novos TEC'!$F$9:$F$1048576,'Saídas Itens Novos TEC'!D50)","v":0},0,null,{"$f":"SUMIFS('[1]Porlocal-Itens Novos TEC-Resumo'!$M$3:$M$1048576,'[1]Porlocal-Itens Novos TEC-Resumo'!$B$3:$B$1048576,'Saídas Itens Novos TEC'!E50,'[1]Porlocal-Itens Novos TEC-Resumo'!$A$3:$A$1048576,'Saídas Itens Novos TEC'!D50)","v":0}]
[null,null,null,null,null,null,null,null,null,null,null,null,null,null,null,{"$f":"SUMIFS('[1]Entradas Itens Novos TEC'!$O$9:$O$1048576,'[1]Entradas Itens Novos TEC'!$A$9:$A$1048576,\"<=42498\",'[1]Entradas Itens Novos TEC'!$G$9:$G$1048576,'Saídas Itens Novos TEC'!E51,'[1]Entradas Itens Novos TEC'!$F$9:$F$1048576,'Saídas Itens Novos TEC'!D51)","v":0},0,null,{"$f":"SUMIFS('[1]Porlocal-Itens Novos TEC-Resumo'!$M$3:$M$1048576,'[1]Porlocal-Itens Novos TEC-Resumo'!$B$3:$B$1048576,'Saídas Itens Novos TEC'!E51,'[1]Porlocal-Itens Novos TEC-Resumo'!$A$3:$A$1048576,'Saídas Itens Novos TEC'!D51)","v":0}]
[null,null,null,null,null,null,null,null,null,null,null,null,null,null,null,{"$f":"SUMIFS('[1]Entradas Itens Novos TEC'!$O$9:$O$1048576,'[1]Entradas Itens Novos TEC'!$A$9:$A$1048576,\"<=42498\",'[1]Entradas Itens Novos TEC'!$G$9:$G$1048576,'Saídas Itens Novos TEC'!E52,'[1]Entradas Itens Novos TEC'!$F$9:$F$1048576,'Saídas Itens Novos TEC'!D52)","v":0},0,null,{"$f":"SUMIFS('[1]Porlocal-Itens Novos TEC-Resumo'!$M$3:$M$1048576,'[1]Porlocal-Itens Novos TEC-Resumo'!$B$3:$B$1048576,'Saídas Itens Novos TEC'!E52,'[1]Porlocal-Itens Novos TEC-Resumo'!$A$3:$A$1048576,'Saídas Itens Novos TEC'!D52)","v":0}]
[null,null,null,null,null,null,null,null,null,null,null,null,null,null,null,{"$f":"SUMIFS('[1]Entradas Itens Novos TEC'!$O$9:$O$1048576,'[1]Entradas Itens Novos TEC'!$A$9:$A$1048576,\"<=42498\",'[1]Entradas Itens Novos TEC'!$G$9:$G$1048576,'Saídas Itens Novos TEC'!E53,'[1]Entradas Itens Novos TEC'!$F$9:$F$1048576,'Saídas Itens Novos TEC'!D53)","v":0},0,null,{"$f":"SUMIFS('[1]Porlocal-Itens Novos TEC-Resumo'!$M$3:$M$1048576,'[1]Porlocal-Itens Novos TEC-Resumo'!$B$3:$B$1048576,'Saídas Itens Novos TEC'!E53,'[1]Porlocal-Itens Novos TEC-Resumo'!$A$3:$A$1048576,'Saídas Itens Novos TEC'!D53)","v":0}]
[null,null,null,null,null,null,null,null,null,null,null,null,null,null,null,{"$f":"SUMIFS('[1]Entradas Itens Novos TEC'!$O$9:$O$1048576,'[1]Entradas Itens Novos TEC'!$A$9:$A$1048576,\"<=42498\",'[1]Entradas Itens Novos TEC'!$G$9:$G$1048576,'Saídas Itens Novos TEC'!E54,'[1]Entradas Itens Novos TEC'!$F$9:$F$1048576,'Saídas Itens Novos TEC'!D54)","v":0},0,null,{"$f":"SUMIFS('[1]Porlocal-Itens Novos TEC-Resumo'!$M$3:$M$1048576,'[1]Porlocal-Itens Novos TEC-Resumo'!$B$3:$B$1048576,'Saídas Itens Novos TEC'!E54,'[1]Porlocal-Itens Novos TEC-Resumo'!$A$3:$A$1048576,'Saídas Itens Novos TEC'!D54)","v":0}]
[null,null,null,null,null,null,null,null,null,null,null,null,null,null,null,{"$f":"SUMIFS('[1]Entradas Itens Novos TEC'!$O$9:$O$1048576,'[1]Entradas Itens Novos TEC'!$A$9:$A$1048576,\"<=42498\",'[1]Entradas Itens Novos TEC'!$G$9:$G$1048576,'Saídas Itens Novos TEC'!E55,'[1]Entradas Itens Novos TEC'!$F$9:$F$1048576,'Saídas Itens Novos TEC'!D55)","v":0},0,null,{"$f":"SUMIFS('[1]Porlocal-Itens Novos TEC-Resumo'!$M$3:$M$1048576,'[1]Porlocal-Itens Novos TEC-Resumo'!$B$3:$B$1048576,'Saídas Itens Novos TEC'!E55,'[1]Porlocal-Itens Novos TEC-Resumo'!$A$3:$A$1048576,'Saídas Itens Novos TEC'!D55)","v":0}]
[null,null,null,null,null,null,null,null,null,null,null,null,null,null,null,{"$f":"SUMIFS('[1]Entradas Itens Novos TEC'!$O$9:$O$1048576,'[1]Entradas Itens Novos TEC'!$A$9:$A$1048576,\"<=42498\",'[1]Entradas Itens Novos TEC'!$G$9:$G$1048576,'Saídas Itens Novos TEC'!E56,'[1]Entradas Itens Novos TEC'!$F$9:$F$1048576,'Saídas Itens Novos TEC'!D56)","v":0},0,null,{"$f":"SUMIFS('[1]Porlocal-Itens Novos TEC-Resumo'!$M$3:$M$1048576,'[1]Porlocal-Itens Novos TEC-Resumo'!$B$3:$B$1048576,'Saídas Itens Novos TEC'!E56,'[1]Porlocal-Itens Novos TEC-Resumo'!$A$3:$A$1048576,'Saídas Itens Novos TEC'!D56)","v":0}]
[null,null,null,null,null,null,null,null,null,null,null,null,null,null,null,{"$f":"SUMIFS('[1]Entradas Itens Novos TEC'!$O$9:$O$1048576,'[1]Entradas Itens Novos TEC'!$A$9:$A$1048576,\"<=42498\",'[1]Entradas Itens Novos TEC'!$G$9:$G$1048576,'Saídas Itens Novos TEC'!E57,'[1]Entradas Itens Novos TEC'!$F$9:$F$1048576,'Saídas Itens Novos TEC'!D57)","v":0},0,null,{"$f":"SUMIFS('[1]Porlocal-Itens Novos TEC-Resumo'!$M$3:$M$1048576,'[1]Porlocal-Itens Novos TEC-Resumo'!$B$3:$B$1048576,'Saídas Itens Novos TEC'!E57,'[1]Porlocal-Itens Novos TEC-Resumo'!$A$3:$A$1048576,'Saídas Itens Novos TEC'!D57)","v":0}]
[null,null,null,null,null,null,null,null,null,null,null,null,null,null,null,{"$f":"SUMIFS('[1]Entradas Itens Novos TEC'!$O$9:$O$1048576,'[1]Entradas Itens Novos TEC'!$A$9:$A$1048576,\"<=42498\",'[1]Entradas Itens Novos TEC'!$G$9:$G$1048576,'Saídas Itens Novos TEC'!E58,'[1]Entradas Itens Novos TEC'!$F$9:$F$1048576,'Saídas Itens Novos TEC'!D58)","v":0},0,null,{"$f":"SUMIFS('[1]Porlocal-Itens Novos TEC-Resumo'!$M$3:$M$1048576,'[1]Porlocal-Itens Novos TEC-Resumo'!$B$3:$B$1048576,'Saídas Itens Novos TEC'!E58,'[1]Porlocal-Itens Novos TEC-Resumo'!$A$3:$A$1048576,'Saídas Itens Novos TEC'!D58)","v":0}]
[null,null,null,null,null,null,null,null,null,null,null,null,null,null,null,{"$f":"SUMIFS('[1]Entradas Itens Novos TEC'!$O$9:$O$1048576,'[1]Entradas Itens Novos TEC'!$A$9:$A$1048576,\"<=42498\",'[1]Entradas Itens Novos TEC'!$G$9:$G$1048576,'Saídas Itens Novos TEC'!E59,'[1]Entradas Itens Novos TEC'!$F$9:$F$1048576,'Saídas Itens Novos TEC'!D59)","v":0},0,null,{"$f":"SUMIFS('[1]Porlocal-Itens Novos TEC-Resumo'!$M$3:$M$1048576,'[1]Porlocal-Itens Novos TEC-Resumo'!$B$3:$B$1048576,'Saídas Itens Novos TEC'!E59,'[1]Porlocal-Itens Novos TEC-Resumo'!$A$3:$A$1048576,'Saídas Itens Novos TEC'!D59)","v":0}]
[null,null,null,null,null,null,null,null,null,null,null,null,null,null,null,{"$f":"SUMIFS('[1]Entradas Itens Novos TEC'!$O$9:$O$1048576,'[1]Entradas Itens Novos TEC'!$A$9:$A$1048576,\"<=42498\",'[1]Entradas Itens Novos TEC'!$G$9:$G$1048576,'Saídas Itens Novos TEC'!E60,'[1]Entradas Itens Novos TEC'!$F$9:$F$1048576,'Saídas Itens Novos TEC'!D60)","v":0},0,null,{"$f":"SUMIFS('[1]Porlocal-Itens Novos TEC-Resumo'!$M$3:$M$1048576,'[1]Porlocal-Itens Novos TEC-Resumo'!$B$3:$B$1048576,'Saídas Itens Novos TEC'!E60,'[1]Porlocal-Itens Novos TEC-Resumo'!$A$3:$A$1048576,'Saídas Itens Novos TEC'!D60)","v":0}]
[null,null,null,null,null,null,null,null,null,null,null,null,null,null,null,{"$f":"SUMIFS('[1]Entradas Itens Novos TEC'!$O$9:$O$1048576,'[1]Entradas Itens Novos TEC'!$A$9:$A$1048576,\"<=42498\",'[1]Entradas Itens Novos TEC'!$G$9:$G$1048576,'Saídas Itens Novos TEC'!E61,'[1]Entradas Itens Novos TEC'!$F$9:$F$1048576,'Saídas Itens Novos TEC'!D61)","v":0},0,null,{"$f":"SUMIFS('[1]Porlocal-Itens Novos TEC-Resumo'!$M$3:$M$1048576,'[1]Porlocal-Itens Novos TEC-Resumo'!$B$3:$B$1048576,'Saídas Itens Novos TEC'!E61,'[1]Porlocal-Itens Novos TEC-Resumo'!$A$3:$A$1048576,'Saídas Itens Novos TEC'!D61)","v":0}]
[null,null,null,null,null,null,null,null,null,null,null,null,null,null,null,{"$f":"SUMIFS('[1]Entradas Itens Novos TEC'!$O$9:$O$1048576,'[1]Entradas Itens Novos TEC'!$A$9:$A$1048576,\"<=42498\",'[1]Entradas Itens Novos TEC'!$G$9:$G$1048576,'Saídas Itens Novos TEC'!E62,'[1]Entradas Itens Novos TEC'!$F$9:$F$1048576,'Saídas Itens Novos TEC'!D62)","v":0},0,null,{"$f":"SUMIFS('[1]Porlocal-Itens Novos TEC-Resumo'!$M$3:$M$1048576,'[1]Porlocal-Itens Novos TEC-Resumo'!$B$3:$B$1048576,'Saídas Itens Novos TEC'!E62,'[1]Porlocal-Itens Novos TEC-Resumo'!$A$3:$A$1048576,'Saídas Itens Novos TEC'!D62)","v":0}]
[null,null,null,null,null,null,null,null,null,null,null,null,null,null,null,{"$f":"SUMIFS('[1]Entradas Itens Novos TEC'!$O$9:$O$1048576,'[1]Entradas Itens Novos TEC'!$A$9:$A$1048576,\"<=42498\",'[1]Entradas Itens Novos TEC'!$G$9:$G$1048576,'Saídas Itens Novos TEC'!E63,'[1]Entradas Itens Novos TEC'!$F$9:$F$1048576,'Saídas Itens Novos TEC'!D63)","v":0},0,null,{"$f":"SUMIFS('[1]Porlocal-Itens Novos TEC-Resumo'!$M$3:$M$1048576,'[1]Porlocal-Itens Novos TEC-Resumo'!$B$3:$B$1048576,'Saídas Itens Novos TEC'!E63,'[1]Porlocal-Itens Novos TEC-Resumo'!$A$3:$A$1048576,'Saídas Itens Novos TEC'!D63)","v":0}]
[null,null,null,null,null,null,null,null,null,null,null,null,null,null,null,{"$f":"SUMIFS('[1]Entradas Itens Novos TEC'!$O$9:$O$1048576,'[1]Entradas Itens Novos TEC'!$A$9:$A$1048576,\"<=42498\",'[1]Entradas Itens Novos TEC'!$G$9:$G$1048576,'Saídas Itens Novos TEC'!E64,'[1]Entradas Itens Novos TEC'!$F$9:$F$1048576,'Saídas Itens Novos TEC'!D64)","v":0},0,null,{"$f":"SUMIFS('[1]Porlocal-Itens Novos TEC-Resumo'!$M$3:$M$1048576,'[1]Porlocal-Itens Novos TEC-Resumo'!$B$3:$B$1048576,'Saídas Itens Novos TEC'!E64,'[1]Porlocal-Itens Novos TEC-Resumo'!$A$3:$A$1048576,'Saídas Itens Novos TEC'!D64)","v":0}]